[Event "*** Titled Tuesday Blitz"]
[Site "Chess.com"]
[Date "2020.04.28"]
[Round "7"]
[White "jucAxx"]
[Black "dennisodessa"]
[Result "0-1"]
[WhiteElo "2108"]
[BlackElo "2308"]
[TimeControl "180+1"]
[EndTime "11:19:45 PDT"]
[Termination "dennisodessa won by resignation"]

1. e4 {[%clk 0:03:00.9]} 1... e6 {[%clk 0:02:49.7]} 2. Nf3 {[%clk 0:03:00.3]}
2... d5 {[%clk 0:02:50.2]} 3. e5 {[%clk 0:03:00.2]} 3... c5 {[%clk 0:02:49.9]}
4. b4 {[%clk 0:03:00.1]} 4... c4 {[%clk 0:02:49.2]} 5. c3 {[%clk 0:02:55.6]}
5... a5 {[%clk 0:02:48.1]} 6. b5 {[%clk 0:02:54]} 6... Nd7 {[%clk 0:02:48.5]} 7.
d3 {[%clk 0:02:52.4]} 7... cxd3 {[%clk 0:02:48.4]} 8. Bxd3 {[%clk 0:02:53]} 8...
Nc5 {[%clk 0:02:48.6]} 9. O-O {[%clk 0:02:51.1]} 9... Ne7 {[%clk 0:02:43.8]} 10.
Be3 {[%clk 0:02:48.8]} 10... Nxd3 {[%clk 0:02:41.3]} 11. Qxd3 {[%clk 0:02:49.7]}
11... Nf5 {[%clk 0:02:41.7]} 12. Nd4 {[%clk 0:02:47.9]} 12... Nxe3 {[%clk
0:02:39.3]} 13. Qxe3 {[%clk 0:02:48.8]} 13... Bd7 {[%clk 0:02:34.3]} 14. Nd2
{[%clk 0:02:45.8]} 14... Rc8 {[%clk 0:02:33.7]} 15. a4 {[%clk 0:02:44]} 15...
Qb6 {[%clk 0:02:32]} 16. Qg3 {[%clk 0:02:41.7]} 16... g6 {[%clk 0:02:07.8]} 17.
h4 {[%clk 0:02:39.5]} 17... Bg7 {[%clk 0:02:04.6]} 18. h5 {[%clk 0:02:25.1]}
18... Qc7 {[%clk 0:02:03.9]} 19. N2f3 {[%clk 0:02:21.7]} 19... Qxc3 {[%clk
0:01:57.8]} 20. Qg5 {[%clk 0:02:21.2]} 20... h6 {[%clk 0:01:45.3]} 21. Qg3
{[%clk 0:01:59.8]} 21... g5 {[%clk 0:01:44.3]} 22. Rfd1 {[%clk 0:01:57.7]} 22...
O-O {[%clk 0:01:36.2]} 23. Ra2 {[%clk 0:01:54.5]} 23... Rc4 {[%clk 0:01:32.6]}
24. Rc2 {[%clk 0:01:43.6]} 24... Qb4 {[%clk 0:01:22.6]} 25. Ra2 {[%clk
0:01:43.1]} 25... Rc3 {[%clk 0:01:16.5]} 26. Qg4 {[%clk 0:01:41.2]} 26... Rfc8
{[%clk 0:01:07.8]} 27. Nxg5 {[%clk 0:01:07.1]} 27... hxg5 {[%clk 0:01:06.9]} 28.
Qxg5 {[%clk 0:01:06.2]} 28... Kh7 {[%clk 0:00:52.9]} 29. Ne2 {[%clk 0:01:03.5]}
29... R3c4 {[%clk 0:00:37.9]} 30. h6 {[%clk 0:01:01.7]} 30... Bh8 {[%clk
0:00:36.7]} 31. Kf1 {[%clk 0:00:50.6]} 31... Qb3 {[%clk 0:00:33.9]} 32. Rad2
{[%clk 0:00:46.2]} 32... Rc2 {[%clk 0:00:32.7]} 33. Qe7 {[%clk 0:00:43.1]} 33...
Be8 {[%clk 0:00:32.2]} 34. f4 {[%clk 0:00:42.9]} 34... Rxd2 {[%clk 0:00:31.4]}
35. Rxd2 {[%clk 0:00:42.9]} 35... Qxa4 {[%clk 0:00:31.3]} 36. b6 {[%clk
0:00:40.6]} 36... Qd7 {[%clk 0:00:29.9]} 37. Qg5 {[%clk 0:00:38]} 37... Qd8
{[%clk 0:00:28.9]} 38. Qg4 {[%clk 0:00:37.8]} 38... Qxb6 {[%clk 0:00:27.8]} 39.
g3 {[%clk 0:00:33.3]} 39... Qb1+ {[%clk 0:00:25.5]} 40. Kf2 {[%clk 0:00:31.7]}
40... Qf5 {[%clk 0:00:23.8]} 41. Qxf5+ {[%clk 0:00:28]} 41... exf5 {[%clk
0:00:24.7]} 42. Rxd5 {[%clk 0:00:28.6]} 42... a4 {[%clk 0:00:22.5]} 43. Nd4
{[%clk 0:00:27.1]} 43... a3 {[%clk 0:00:21.5]} 44. Nxf5 {[%clk 0:00:27.4]} 44...
a2 {[%clk 0:00:20.4]} 45. Ra5 {[%clk 0:00:26]} 45... Rc2+ {[%clk 0:00:20]} 46.
Ke3 {[%clk 0:00:22.3]} 46... b6 {[%clk 0:00:16.7]} 47. Ra8 {[%clk 0:00:20.1]}
47... Bc6 {[%clk 0:00:16.2]} 48. Ra7 {[%clk 0:00:18.1]} 48... Bd5 {[%clk
0:00:13.7]} 49. Kd4 {[%clk 0:00:17.8]} 49... Be6 {[%clk 0:00:13.5]} 50. Nd6
{[%clk 0:00:14.7]} 50... Rc1 {[%clk 0:00:13]} 51. f5 {[%clk 0:00:15.1]} 51...
a1=Q+ {[%clk 0:00:11.6]} 52. Rxa1 {[%clk 0:00:11.1]} 52... Rxa1 {[%clk
0:00:12.5]} 53. fxe6 {[%clk 0:00:11]} 53... fxe6 {[%clk 0:00:13.4]} 54. Nf7
{[%clk 0:00:09.5]} 54... Rg1 {[%clk 0:00:08.9]} 55. Kc4 {[%clk 0:00:08]} 55...
Rxg3 {[%clk 0:00:07.9]} 56. Kb5 {[%clk 0:00:08.4]} 56... Re3 {[%clk 0:00:04.9]}
57. Ng5+ {[%clk 0:00:06.3]} 57... Kxh6 {[%clk 0:00:04.4]} 58. Nf7+ {[%clk
0:00:05.9]} 58... Kg7 {[%clk 0:00:03.8]} 59. Nd8 {[%clk 0:00:05.1]} 59... Rxe5+
{[%clk 0:00:03.9]} 60. Kxb6 {[%clk 0:00:05.7]} 60... Kf6 {[%clk 0:00:04]} 61.
Kc6 {[%clk 0:00:05.9]} 61... Rh5 {[%clk 0:00:03.8]} 62. Kd6 {[%clk 0:00:06.1]}
62... e5 {[%clk 0:00:03.1]} 63. Nc6 {[%clk 0:00:06.5]} 63... Bg7 {[%clk
0:00:03.2]} 64. Kd5 {[%clk 0:00:06.5]} 64... Bf8 {[%clk 0:00:03.1]} 65. Nb4
{[%clk 0:00:06]} 65... Bxb4 {[%clk 0:00:02.1]} 0-1

[Event "*** Titled Tuesday Blitz"]
[Site "Chess.com"]
[Date "2020.04.28"]
[Round "7"]
[White "Rsnr"]
[Black "Man-Chuk"]
[Result "0-1"]
[WhiteElo "2841"]
[BlackElo "2741"]
[TimeControl "180+1"]
[EndTime "11:19:47 PDT"]
[Termination "Man-Chuk won by resignation"]

1. d4 {[%clk 0:03:00.9]} 1... Nf6 {[%clk 0:02:58.1]} 2. c4 {[%clk 0:03:01.4]}
2... e6 {[%clk 0:02:58]} 3. Nf3 {[%clk 0:03:01.7]} 3... d5 {[%clk 0:02:58.4]} 4.
g3 {[%clk 0:03:02]} 4... Bb4+ {[%clk 0:02:57.8]} 5. Bd2 {[%clk 0:03:02.2]} 5...
Be7 {[%clk 0:02:58.3]} 6. Bg2 {[%clk 0:03:02.5]} 6... O-O {[%clk 0:02:58.9]} 7.
O-O {[%clk 0:03:03.4]} 7... c6 {[%clk 0:02:59.3]} 8. Qc2 {[%clk 0:03:04]} 8...
Nbd7 {[%clk 0:02:58.4]} 9. Bf4 {[%clk 0:03:04.5]} 9... b6 {[%clk 0:02:58.7]} 10.
Rd1 {[%clk 0:03:04.5]} 10... Ba6 {[%clk 0:02:58.5]} 11. Ne5 {[%clk 0:03:04.4]}
11... Nxe5 {[%clk 0:02:58.2]} 12. dxe5 {[%clk 0:03:01.9]} 12... Ng4 {[%clk
0:02:58.4]} 13. Bf3 {[%clk 0:03:00.5]} 13... g5 {[%clk 0:02:49.2]} 14. Bxg4
{[%clk 0:03:00.9]} 14... gxf4 {[%clk 0:02:49.1]} 15. Nd2 {[%clk 0:03:01.8]}
15... f5 {[%clk 0:02:22.9]} 16. exf6 {[%clk 0:02:16.9]} 16... Rxf6 {[%clk
0:02:22.7]} 17. cxd5 {[%clk 0:01:52.7]} 17... exd5 {[%clk 0:02:18.4]} 18. Ne4
{[%clk 0:01:38.6]} 18... Rh6 {[%clk 0:02:14.6]} 19. gxf4 {[%clk 0:01:01]} 19...
Qf8 {[%clk 0:02:14.5]} 20. Ng3 {[%clk 0:00:42]} 20... Qxf4 {[%clk 0:02:14.1]}
21. Qf5 {[%clk 0:00:35.7]} 21... Rf8 {[%clk 0:02:03.5]} 22. Qxf4 {[%clk
0:00:34.6]} 22... Rxf4 {[%clk 0:02:04.4]} 23. h3 {[%clk 0:00:35.5]} 23... Rg6
{[%clk 0:01:55.1]} 24. e3 {[%clk 0:00:33.1]} 24... Rf8 {[%clk 0:01:52.1]} 25.
Rac1 {[%clk 0:00:31.5]} 25... Bh4 {[%clk 0:01:36.8]} 26. Kg2 {[%clk 0:00:25.7]}
26... Bb7 {[%clk 0:01:36.7]} 27. Rc2 {[%clk 0:00:19.1]} 27... Rgf6 {[%clk
0:01:32.7]} 28. Rdd2 {[%clk 0:00:12.9]} 28... c5 {[%clk 0:01:32.5]} 29. Nh5
{[%clk 0:00:12.5]} 29... d4+ {[%clk 0:01:26.6]} 30. Kg1 {[%clk 0:00:13]} 30...
Rd6 {[%clk 0:01:13.3]} 31. exd4 {[%clk 0:00:13.2]} 31... Rxd4 {[%clk 0:01:13.9]}
32. Rxd4 {[%clk 0:00:13]} 32... cxd4 {[%clk 0:01:14.8]} 33. f4 {[%clk
0:00:05.2]} 33... d3 {[%clk 0:01:07.1]} 34. Rc7 {[%clk 0:00:05.4]} 34... Be4
{[%clk 0:00:56.7]} 35. Rg7+ {[%clk 0:00:04.2]} 35... Kh8 {[%clk 0:00:57]} 36.
Rd7 {[%clk 0:00:05.1]} 36... Rc8 {[%clk 0:00:42.7]} 37. Rxd3 {[%clk 0:00:02.6]}
37... Rc2 {[%clk 0:00:28.1]} 38. Rd1 {[%clk 0:00:03.2]} 38... Rg2+ {[%clk
0:00:19.7]} 39. Kf1 {[%clk 0:00:03.8]} 39... Rxb2 {[%clk 0:00:17.5]} 40. f5
{[%clk 0:00:04]} 40... Rf2+ {[%clk 0:00:13.5]} 41. Kg1 {[%clk 0:00:04.4]} 41...
Rg2+ {[%clk 0:00:13.7]} 42. Kf1 {[%clk 0:00:04.8]} 42... Rf2+ {[%clk 0:00:10.5]}
43. Kg1 {[%clk 0:00:05.3]} 43... Kg8 {[%clk 0:00:09.5]} 44. Rc1 {[%clk
0:00:04.4]} 44... Rg2+ {[%clk 0:00:08.8]} 45. Kf1 {[%clk 0:00:04.7]} 45... Rxa2
{[%clk 0:00:09]} 46. Rc8+ {[%clk 0:00:04.2]} 46... Kf7 {[%clk 0:00:09.5]} 47.
Rc7+ {[%clk 0:00:05.1]} 47... Kf8 {[%clk 0:00:10]} 48. Rc8+ {[%clk 0:00:05.2]}
48... Ke7 {[%clk 0:00:10.4]} 49. Rc7+ {[%clk 0:00:04.6]} 49... Kd6 {[%clk
0:00:10.7]} 50. Rxh7 {[%clk 0:00:04.5]} 50... Rf2+ {[%clk 0:00:09.7]} 51. Kg1
{[%clk 0:00:04.7]} 51... Rc2 {[%clk 0:00:06.5]} 52. Kf1 {[%clk 0:00:03.6]} 52...
Bd3+ {[%clk 0:00:06]} 53. Kg1 {[%clk 0:00:03.5]} 53... Rc1+ {[%clk 0:00:06.2]}
54. Kg2 {[%clk 0:00:03.7]} 54... Be4+ {[%clk 0:00:06.4]} 55. Bf3 {[%clk
0:00:04]} 55... Rc2+ {[%clk 0:00:06.7]} 56. Kf1 {[%clk 0:00:03.5]} 56... Bxf3
{[%clk 0:00:06.5]} 57. Rh6+ {[%clk 0:00:03.3]} 57... Ke5 {[%clk 0:00:05.7]} 58.
Re6+ {[%clk 0:00:03]} 58... Kxf5 {[%clk 0:00:05]} 59. Ng7+ {[%clk 0:00:03.6]}
59... Kf4 {[%clk 0:00:05.6]} 60. Nh5+ {[%clk 0:00:04]} 60... Bxh5 {[%clk
0:00:05.9]} 0-1

[Event "*** Titled Tuesday Blitz"]
[Site "Chess.com"]
[Date "2020.04.28"]
[Round "7"]
[White "TheBigBoss04"]
[Black "Gurvich_Vitaly"]
[Result "0-1"]
[WhiteElo "2721"]
[BlackElo "2571"]
[TimeControl "180+1"]
[EndTime "11:19:47 PDT"]
[Termination "Gurvich_Vitaly won by resignation"]

1. d4 {[%clk 0:03:00.9]} 1... d5 {[%clk 0:02:58.6]} 2. c4 {[%clk 0:02:58.6]}
2... dxc4 {[%clk 0:02:59.5]} 3. e4 {[%clk 0:02:55.5]} 3... Nc6 {[%clk
0:02:56.4]} 4. Nf3 {[%clk 0:02:45.6]} 4... Bg4 {[%clk 0:02:55.6]} 5. d5 {[%clk
0:02:45.8]} 5... Ne5 {[%clk 0:02:54.2]} 6. Bf4 {[%clk 0:02:45.4]} 6... Bxf3
{[%clk 0:02:50.8]} 7. gxf3 {[%clk 0:02:44.8]} 7... Ng6 {[%clk 0:02:51.7]} 8. Be3
{[%clk 0:02:39.7]} 8... e5 {[%clk 0:02:49.2]} 9. dxe6 {[%clk 0:02:29.1]} 9...
Qxd1+ {[%clk 0:02:47.8]} 10. Kxd1 {[%clk 0:02:29.3]} 10... O-O-O+ {[%clk
0:02:45.7]} 11. Ke1 {[%clk 0:02:29.5]} 11... fxe6 {[%clk 0:02:46.6]} 12. Bxc4
{[%clk 0:02:29.6]} 12... e5 {[%clk 0:02:22.5]} 13. Ke2 {[%clk 0:02:22.5]} 13...
Nf6 {[%clk 0:02:21.2]} 14. Nc3 {[%clk 0:02:07.2]} 14... c6 {[%clk 0:02:17.7]}
15. a3 {[%clk 0:01:52.4]} 15... Nh5 {[%clk 0:02:07.3]} 16. Rhd1 {[%clk 0:01:47]}
16... Nhf4+ {[%clk 0:02:02.1]} 17. Kf1 {[%clk 0:01:47.1]} 17... Be7 {[%clk
0:01:35.7]} 18. Bxa7 {[%clk 0:01:44.5]} 18... Rhf8 {[%clk 0:01:31.5]} 19. Bb6
{[%clk 0:01:42.4]} 19... Rxd1+ {[%clk 0:01:27.7]} 20. Rxd1 {[%clk 0:01:43.3]}
20... Nh4 {[%clk 0:01:27]} 21. Ne2 {[%clk 0:01:34.4]} 21... Nxf3 {[%clk
0:01:08.8]} 22. Nxf4 {[%clk 0:01:33.6]} 22... exf4 {[%clk 0:01:09.7]} 23. Be6+
{[%clk 0:01:30.3]} 23... Kb8 {[%clk 0:01:09.8]} 24. Rd7 {[%clk 0:01:27.8]} 24...
Bf6 {[%clk 0:01:09.8]} 25. Ke2 {[%clk 0:01:19.9]} 25... Ne5 {[%clk 0:00:57]} 26.
Rd1 {[%clk 0:01:18.1]} 26... Re8 {[%clk 0:00:53]} 27. Bb3 {[%clk 0:01:04.8]}
27... f3+ {[%clk 0:00:36.7]} 28. Kf1 {[%clk 0:01:01.6]} 28... Ng6 {[%clk
0:00:30.7]} 29. Rd3 {[%clk 0:00:55.8]} 29... Nh4 {[%clk 0:00:24]} 30. Re3 {[%clk
0:00:30.1]} 30... Bxb2 {[%clk 0:00:23.9]} 31. a4 {[%clk 0:00:25.9]} 31... Be5
{[%clk 0:00:23.1]} 32. h3 {[%clk 0:00:22.3]} 32... Bc7 {[%clk 0:00:20.6]} 33.
Bd4 {[%clk 0:00:21.3]} 33... Bf4 {[%clk 0:00:20.4]} 34. Re1 {[%clk 0:00:16.3]}
34... Ng2 {[%clk 0:00:12.4]} 35. Rd1 {[%clk 0:00:14.1]} 35... Rxe4 {[%clk
0:00:12.4]} 36. Bxg7 {[%clk 0:00:12.5]} 36... Be5 {[%clk 0:00:11.3]} 37. Bh6
{[%clk 0:00:09.3]} 37... Rh4 {[%clk 0:00:08.7]} 38. Bg5 {[%clk 0:00:04.1]} 38...
Rxh3 {[%clk 0:00:07.9]} 39. Kg1 {[%clk 0:00:03.1]} 39... Bh2+ {[%clk 0:00:07]}
40. Kf1 {[%clk 0:00:03.2]} 40... Bd6 {[%clk 0:00:04.3]} 41. Kg1 {[%clk
0:00:02.1]} 41... Be5 {[%clk 0:00:03.8]} 42. Bd2 {[%clk 0:00:01.6]} 42... Bh2+
{[%clk 0:00:03.4]} 43. Kf1 {[%clk 0:00:02.2]} 43... Bf4 {[%clk 0:00:02.7]} 44.
Kg1 {[%clk 0:00:02.3]} 44... Bxd2 {[%clk 0:00:02.1]} 45. Rxd2 {[%clk 0:00:03.2]}
45... Ka7 {[%clk 0:00:03]} 46. Bd1 {[%clk 0:00:03.6]} 46... Nf4 {[%clk
0:00:03.4]} 47. Rd4 {[%clk 0:00:02.4]} 47... Rh4 {[%clk 0:00:03.6]} 48. Re4
{[%clk 0:00:01.3]} 48... Nh3+ {[%clk 0:00:02.9]} 49. Kh2 {[%clk 0:00:01.3]}
49... Rxe4 {[%clk 0:00:03.8]} 50. Kxh3 {[%clk 0:00:01.9]} 50... Rd4 {[%clk
0:00:04.7]} 51. Bxf3 {[%clk 0:00:02.4]} 51... Rxa4 {[%clk 0:00:05.3]} 52. Kg3
{[%clk 0:00:02]} 52... Ra3 {[%clk 0:00:06.2]} 53. Kf4 {[%clk 0:00:01.8]} 53...
Rxf3+ {[%clk 0:00:06.4]} 54. Kxf3 {[%clk 0:00:01.1]} 54... Kb6 {[%clk
0:00:07.3]} 55. Kf4 {[%clk 0:00:01.4]} 55... Kc7 {[%clk 0:00:08.2]} 56. Kg5
{[%clk 0:00:02]} 56... Kd7 {[%clk 0:00:09.1]} 57. Kf6 {[%clk 0:00:02.2]} 57...
Ke8 {[%clk 0:00:08.6]} 58. f4 {[%clk 0:00:03.1]} 58... Kf8 {[%clk 0:00:08.6]}
59. Ke6 {[%clk 0:00:04]} 59... h5 {[%clk 0:00:08.5]} 60. Kf5 {[%clk 0:00:04.2]}
60... h4 {[%clk 0:00:08.9]} 61. Kg4 {[%clk 0:00:04.6]} 61... b5 {[%clk
0:00:09.8]} 62. Kxh4 {[%clk 0:00:05.1]} 62... b4 {[%clk 0:00:10.7]} 63. Kg5
{[%clk 0:00:05.8]} 63... b3 {[%clk 0:00:11.6]} 64. Kf6 {[%clk 0:00:06.7]} 64...
b2 {[%clk 0:00:12.5]} 65. f5 {[%clk 0:00:07.6]} 0-1

[Event "*** Titled Tuesday Blitz"]
[Site "Chess.com"]
[Date "2020.04.28"]
[Round "7"]
[White "Borsuk_Konstantin"]
[Black "dbrankovic68"]
[Result "1-0"]
[WhiteElo "2569"]
[BlackElo "2371"]
[TimeControl "180+1"]
[EndTime "11:19:47 PDT"]
[Termination "Borsuk_Konstantin won on time"]

1. d4 {[%clk 0:03:00.9]} 1... Nf6 {[%clk 0:02:59.9]} 2. c4 {[%clk 0:03:00.8]}
2... g6 {[%clk 0:03:00.5]} 3. Nc3 {[%clk 0:03:00.8]} 3... Bg7 {[%clk 0:03:01.4]}
4. e4 {[%clk 0:03:00.5]} 4... d6 {[%clk 0:03:01.8]} 5. h3 {[%clk 0:03:00]} 5...
O-O {[%clk 0:03:02.2]} 6. Be3 {[%clk 0:03:00.1]} 6... c6 {[%clk 0:02:58.6]} 7.
Nf3 {[%clk 0:02:57.4]} 7... a6 {[%clk 0:02:53.5]} 8. a4 {[%clk 0:02:56.8]} 8...
a5 {[%clk 0:02:53]} 9. Be2 {[%clk 0:02:43.8]} 9... Qc7 {[%clk 0:02:53]} 10. O-O
{[%clk 0:02:43.3]} 10... e5 {[%clk 0:02:53]} 11. Rc1 {[%clk 0:02:34.2]} 11...
exd4 {[%clk 0:02:43.4]} 12. Nxd4 {[%clk 0:02:33.1]} 12... Re8 {[%clk 0:02:43.7]}
13. f3 {[%clk 0:02:32.1]} 13... Na6 {[%clk 0:02:43.2]} 14. g4 {[%clk 0:02:29]}
14... Nc5 {[%clk 0:02:30.5]} 15. Kg2 {[%clk 0:02:24.8]} 15... Qb6 {[%clk
0:02:20.4]} 16. Qd2 {[%clk 0:02:17.6]} 16... Qc7 {[%clk 0:01:54.5]} 17. Rcd1
{[%clk 0:02:15.5]} 17... Bd7 {[%clk 0:01:46.8]} 18. Bf4 {[%clk 0:02:15.3]} 18...
Bf8 {[%clk 0:01:35.8]} 19. h4 {[%clk 0:02:01.5]} 19... Rad8 {[%clk 0:01:34.2]}
20. h5 {[%clk 0:01:59.6]} 20... Bc8 {[%clk 0:01:34.2]} 21. hxg6 {[%clk
0:01:55.3]} 21... fxg6 {[%clk 0:01:29.7]} 22. Qc2 {[%clk 0:01:41.3]} 22... Qf7
{[%clk 0:01:24]} 23. Bg3 {[%clk 0:01:40.1]} 23... Bg7 {[%clk 0:01:17.4]} 24. Nb3
{[%clk 0:01:36.3]} 24... Nxb3 {[%clk 0:01:12.6]} 25. Qxb3 {[%clk 0:01:37.2]}
25... Qe7 {[%clk 0:00:55.7]} 26. Qb6 {[%clk 0:01:30.9]} 26... Nd7 {[%clk
0:00:55]} 27. Qxa5 {[%clk 0:01:29.4]} 27... Ne5 {[%clk 0:00:53.5]} 28. Qb4
{[%clk 0:01:19.6]} 28... Be6 {[%clk 0:00:51.9]} 29. a5 {[%clk 0:01:15.8]} 29...
Rf8 {[%clk 0:00:46.9]} 30. Na4 {[%clk 0:01:08.6]} 30... c5 {[%clk 0:00:41.2]}
31. Qb3 {[%clk 0:01:02]} 31... Nc6 {[%clk 0:00:41.4]} 32. Nb6 {[%clk 0:00:47.7]}
32... Nd4 {[%clk 0:00:41.3]} 33. Qd3 {[%clk 0:00:44.6]} 33... Bf7 {[%clk
0:00:37.7]} 34. Rf2 {[%clk 0:00:40.3]} 34... Rfe8 {[%clk 0:00:34]} 35. Bf1
{[%clk 0:00:37.9]} 35... Be6 {[%clk 0:00:30]} 36. Kg1 {[%clk 0:00:28.1]} 36...
h5 {[%clk 0:00:29.9]} 37. gxh5 {[%clk 0:00:22]} 37... gxh5 {[%clk 0:00:29.9]}
38. Rg2 {[%clk 0:00:19.8]} 38... Rf8 {[%clk 0:00:28.5]} 39. f4 {[%clk
0:00:18.2]} 39... Bg4 {[%clk 0:00:27.5]} 40. Nd5 {[%clk 0:00:17.7]} 40... Qf7
{[%clk 0:00:20.4]} 41. Re1 {[%clk 0:00:16.1]} 41... Be6 {[%clk 0:00:20.4]} 42.
f5 {[%clk 0:00:13.8]} 42... Bxd5 {[%clk 0:00:20.2]} 43. exd5 {[%clk 0:00:13.9]}
43... Rde8 {[%clk 0:00:20.5]} 44. Re6 {[%clk 0:00:13.6]} 44... Bf6 {[%clk
0:00:17.9]} 45. Bxd6+ {[%clk 0:00:12.6]} 45... Kh7 {[%clk 0:00:17.2]} 46. Bxf8
{[%clk 0:00:13]} 46... Rxf8 {[%clk 0:00:17.4]} 47. Qh3 {[%clk 0:00:10.2]} 47...
Rg8 {[%clk 0:00:15.1]} 48. Rxg8 {[%clk 0:00:09.2]} 48... Kxg8 {[%clk 0:00:15.4]}
49. Qg2+ {[%clk 0:00:07.5]} 49... Kf8 {[%clk 0:00:15]} 50. Bd3 {[%clk
0:00:06.5]} 50... Bg7 {[%clk 0:00:10.7]} 51. Qg6 {[%clk 0:00:05.3]} 51... Qd7
{[%clk 0:00:09.5]} 52. f6 {[%clk 0:00:04.1]} 52... Nxe6 {[%clk 0:00:09.1]} 53.
fxg7+ {[%clk 0:00:04.2]} 53... Nxg7 {[%clk 0:00:08.3]} 54. Qf6+ {[%clk
0:00:04.3]} 54... Kg8 {[%clk 0:00:08.1]} 55. Qg5 {[%clk 0:00:04.6]} 55... Kf8
{[%clk 0:00:07.5]} 56. Kg2 {[%clk 0:00:04.1]} 56... Qe8 {[%clk 0:00:06.4]} 57.
Qf6+ {[%clk 0:00:03.7]} 57... Kg8 {[%clk 0:00:06]} 58. Qf4 {[%clk 0:00:04]}
58... Qe7 {[%clk 0:00:05.1]} 59. d6 {[%clk 0:00:03.8]} 59... Qe6 {[%clk
0:00:04.9]} 60. Be2 {[%clk 0:00:03.2]} 60... h4 {[%clk 0:00:04.4]} 61. Bg4
{[%clk 0:00:02.3]} 61... Qe1 {[%clk 0:00:02.3]} 62. d7 {[%clk 0:00:02.4]} 62...
Qe7 {[%clk 0:00:02]} 63. Kh3 {[%clk 0:00:02.3]} 63... Kh7 {[%clk 0:00:02.2]} 64.
Qf3 {[%clk 0:00:02.2]} 1-0

[Event "*** Titled Tuesday Blitz"]
[Site "Chess.com"]
[Date "2020.04.28"]
[Round "7"]
[White "Shield12"]
[Black "chessablanca"]
[Result "1-0"]
[WhiteElo "2824"]
[BlackElo "2445"]
[TimeControl "180+1"]
[EndTime "11:19:47 PDT"]
[Termination "Shield12 won by resignation"]

1. e4 {[%clk 0:03:00.9]} 1... e5 {[%clk 0:03:00.1]} 2. Nf3 {[%clk 0:03:00.8]}
2... Nc6 {[%clk 0:03:00.3]} 3. Bc4 {[%clk 0:03:01]} 3... Bc5 {[%clk 0:03:00.3]}
4. c3 {[%clk 0:02:59.8]} 4... Nf6 {[%clk 0:03:00.6]} 5. d3 {[%clk 0:03:00.2]}
5... d6 {[%clk 0:03:00.4]} 6. a4 {[%clk 0:02:57.7]} 6... a5 {[%clk 0:02:55.9]}
7. O-O {[%clk 0:02:55.7]} 7... h6 {[%clk 0:02:54.7]} 8. Re1 {[%clk 0:02:54]}
8... O-O {[%clk 0:02:53.6]} 9. Nbd2 {[%clk 0:02:53.8]} 9... Bb6 {[%clk
0:02:48.3]} 10. h3 {[%clk 0:02:53]} 10... Ne7 {[%clk 0:02:38.4]} 11. d4 {[%clk
0:02:52.6]} 11... Ng6 {[%clk 0:02:35.1]} 12. Bd3 {[%clk 0:02:52]} 12... Nf4
{[%clk 0:02:30.4]} 13. Bf1 {[%clk 0:02:51.3]} 13... Qe7 {[%clk 0:01:41.8]} 14.
Nc4 {[%clk 0:02:48.8]} 14... Ng6 {[%clk 0:01:41.9]} 15. Nxb6 {[%clk 0:02:47.4]}
15... cxb6 {[%clk 0:01:41.7]} 16. Qb3 {[%clk 0:02:42.7]} 16... exd4 {[%clk
0:01:35.1]} 17. Nxd4 {[%clk 0:02:40.7]} 17... d5 {[%clk 0:01:25.8]} 18. e5
{[%clk 0:02:37.1]} 18... Nd7 {[%clk 0:01:04.6]} 19. e6 {[%clk 0:02:35.5]} 19...
Nc5 {[%clk 0:00:58.4]} 20. Qxb6 {[%clk 0:02:30.5]} 20... fxe6 {[%clk 0:00:58]}
21. Be3 {[%clk 0:02:16.6]} 21... Ne4 {[%clk 0:00:41.7]} 22. f3 {[%clk
0:02:09.3]} 22... Ng3 {[%clk 0:00:39.2]} 23. Bd3 {[%clk 0:01:55.7]} 23... Nh4
{[%clk 0:00:33]} 24. Bf2 {[%clk 0:01:49.5]} 24... Qg5 {[%clk 0:00:23.1]} 25. Kh2
{[%clk 0:01:38.1]} 25... Ngf5 {[%clk 0:00:14.1]} 26. Bf1 {[%clk 0:01:27.2]}
26... e5 {[%clk 0:00:10.1]} 27. Nxf5 {[%clk 0:01:24.5]} 27... Nxf5 {[%clk
0:00:11]} 28. Qc7 {[%clk 0:01:02.5]} 28... Qf4+ {[%clk 0:00:10]} 29. Kg1 {[%clk
0:01:01.8]} 29... Re8 {[%clk 0:00:09.9]} 30. Bb5 {[%clk 0:01:00.7]} 30... Re7
{[%clk 0:00:09]} 31. Qd8+ {[%clk 0:00:59.2]} 31... Kh7 {[%clk 0:00:09.4]} 32.
Bd3 {[%clk 0:00:58.3]} 32... e4 {[%clk 0:00:08.5]} 33. fxe4 {[%clk 0:00:56.8]}
33... dxe4 {[%clk 0:00:09.4]} 34. Bc2 {[%clk 0:00:54.8]} 34... e3 {[%clk
0:00:08.1]} 35. Bg3 {[%clk 0:00:31]} 35... Qxg3 {[%clk 0:00:05.7]} 36. Bxf5+
{[%clk 0:00:22.6]} 36... Bxf5 {[%clk 0:00:06.6]} 37. Qxe7 {[%clk 0:00:23.4]}
37... Qf2+ {[%clk 0:00:06.1]} 38. Kh1 {[%clk 0:00:22.7]} 38... Bxh3 {[%clk
0:00:03.5]} 39. Qe4+ {[%clk 0:00:18.3]} 39... Bf5 {[%clk 0:00:02.3]} 40. Qxe3
{[%clk 0:00:18.1]} 40... Qxe3 {[%clk 0:00:03.2]} 41. Rxe3 {[%clk 0:00:18]} 41...
Rd8 {[%clk 0:00:04.1]} 42. Re5 {[%clk 0:00:18.1]} 42... Bg6 {[%clk 0:00:04.5]}
43. Rxa5 {[%clk 0:00:18]} 43... Rd2 {[%clk 0:00:05]} 44. Rb5 {[%clk 0:00:17.4]}
44... Be4 {[%clk 0:00:05.4]} 45. Rg1 {[%clk 0:00:17.4]} 45... h5 {[%clk
0:00:05.8]} 46. Rxh5+ {[%clk 0:00:15.6]} 46... Kg6 {[%clk 0:00:06.7]} 47. Rb5
{[%clk 0:00:16.4]} 47... Kf6 {[%clk 0:00:05.5]} 48. a5 {[%clk 0:00:16.3]} 48...
Rd8 {[%clk 0:00:05]} 49. Kh2 {[%clk 0:00:15.8]} 49... g5 {[%clk 0:00:04.7]} 50.
Kg3 {[%clk 0:00:15.9]} 50... Bc6 {[%clk 0:00:05.3]} 51. Rb6 {[%clk 0:00:15.7]}
51... Rd3+ {[%clk 0:00:06.2]} 52. Kh2 {[%clk 0:00:15.3]} 52... Kf5 {[%clk
0:00:07]} 53. a6 {[%clk 0:00:14.5]} 53... Kg4 {[%clk 0:00:04.5]} 54. axb7 {[%clk
0:00:13.6]} 54... Rd7 {[%clk 0:00:05]} 55. Re1 {[%clk 0:00:10.3]} 55... Bxb7
{[%clk 0:00:04.7]} 56. Rb4+ {[%clk 0:00:08.5]} 56... Kh5 {[%clk 0:00:03.9]} 57.
g4+ {[%clk 0:00:08.5]} 57... Kh4 {[%clk 0:00:03.2]} 58. Re2 {[%clk 0:00:08.9]}
58... Bf3 {[%clk 0:00:02.7]} 59. Rf2 {[%clk 0:00:08.3]} 59... Bd5 {[%clk
0:00:02.9]} 60. Rf8 {[%clk 0:00:07.6]} 60... Rh7 {[%clk 0:00:02.3]} 61. Rd4
{[%clk 0:00:07.3]} 61... Be6 {[%clk 0:00:03.2]} 62. Rf3 {[%clk 0:00:06.9]} 62...
Bxg4 {[%clk 0:00:04.1]} 63. Rg3 {[%clk 0:00:07]} 63... Kh5 {[%clk 0:00:04.8]}
64. Rdxg4 {[%clk 0:00:07.1]} 64... Rf7 {[%clk 0:00:05.6]} 65. Rxg5+ {[%clk
0:00:07.2]} 65... Kh6 {[%clk 0:00:06.5]} 66. Rg6+ {[%clk 0:00:07.6]} 66... Kh5
{[%clk 0:00:07.4]} 67. R6g5+ {[%clk 0:00:07.8]} 67... Kh4 {[%clk 0:00:07.5]} 68.
Rg8 {[%clk 0:00:08.7]} 68... Rf2+ {[%clk 0:00:07.5]} 69. Rg2 {[%clk 0:00:09.1]}
1-0